fUST/lending_fUST_20250422
["ID","MTS","AMOUNT","RATE_DAILY","PERIOD"]
[358621903,1745315450318,-151.0,0.00022739,7]
[358621904,1745315450328,-500.0,0.00022739,2]
[358621905,1745315450339,-625.91,0.00022739,2]
[358621906,1745315450349,-500.0,0.00022739,2]
[358621907,1745315450359,-151.0,0.00022739,7]
[358621908,1745315450368,-1608.99,0.00022739,2]
[358621909,1745315450378,-151.0,0.00022739,7]
[358621910,1745315450389,-500.0,0.00022739,2]
[358621911,1745315450400,-687.33,0.00022739,2]
[358621912,1745315450410,-649.16,0.00022739,2]
[358621913,1745315450419,-500.0,0.00022739,2]
[358621914,1745315450430,-500.0,0.00022739,2]
[358621915,1745315450439,-603.39,0.00022739,2]
[358621916,1745315450449,-500.0,0.00022739,2]
[358621917,1745315450458,-1604.6,0.00022739,2]
[358621918,1745315450468,-1370.17,0.00022739,2]
[358621919,1745315450478,-500.0,0.00022739,2]
[358621920,1745315450488,-500.0,0.00022739,2]
[358621921,1745315450498,-151.0,0.00022739,7]
[358621922,1745315450507,-500.0,0.00022739,2]
[358621923,1745315450517,-500.0,0.00022739,2]
[358621924,1745315450527,-500.0,0.00022739,2]
[358621925,1745315450537,-4013.43,0.00022739,2]
[358621926,1745315450547,-500.0,0.00022739,2]
[358621927,1745315450556,-3088.29,0.00022739,2]
[358621928,1745315450566,-500.0,0.00022739,2]
[358621929,1745315450577,-500.0,0.00022739,2]
[358621930,1745315450587,-500.0,0.00022739,2]
[358621931,1745315450597,-541.97961516,0.00022739,2]
[358621932,1745315450609,-572.7,0.00022739,2]
[358621933,1745315450618,-500.0,0.00022739,2]
[358621934,1745315450629,-753.24,0.00022739,2]
[358621935,1745315450640,-500.0,0.00022739,2]
[358621936,1745315450649,-500.0,0.00022739,2]
[358621937,1745315450660,-215.0738,0.00022749,2]
[358621938,1745315450669,-289.1748709,0.00022761,2]
[358621939,1745315450679,-500.0,0.00023013,2]
[358621940,1745315450689,-500.0,0.00023013,2]
[358621941,1745315450699,-500.0,0.00023013,2]
[358621942,1745315450709,-500.0,0.00023013,2]
[358621943,1745315450718,-500.0,0.00023013,2]
[358621944,1745315450728,-500.0,0.00023013,2]
[358621945,1745315450738,-506.77244207,0.00023013,2]
[358621946,1745315450748,-517.26,0.00023013,2]
[358621947,1745315450758,-500.0,0.00023013,2]
[358621948,1745315450767,-500.0,0.00023013,2]
[358621949,1745315450777,-500.0,0.00023013,2]
[358621950,1745315450787,-500.0,0.00023013,2]
[358621951,1745315450797,-644.09,0.00023013,2]
[358621952,1745315450807,-705.05,0.00023013,2]
[358621953,1745315450816,-500.0,0.00023013,2]
[358621954,1745315450825,-500.0,0.00023013,2]
[358621955,1745315450836,-500.0,0.00023013,2]
[358621956,1745315450846,-500.0,0.00023013,2]
[358621957,1745315450856,-500.0,0.00023013,2]
[358621958,1745315450865,-500.0,0.00023013,2]
[358621959,1745315450875,-761.67,0.00023013,2]
[358621960,1745315450884,-1056.18,0.00023013,2]
[358621961,1745315450895,-512.88,0.00023013,2]
[358621962,1745315450905,-500.0,0.00023013,2]
[358621963,1745315450914,-151.0,0.00023013,7]
[358621964,1745315450925,-500.0,0.00023013,2]
[358621965,1745315450934,-639.18,0.00023013,2]
[358621966,1745315450944,-500.0,0.00023013,2]
[358621967,1745315450954,-155.262413,0.00023013,2]
[358621968,1745315450963,-500.0,0.00023013,2]
[358621969,1745315450975,-155.262413,0.00023013,2]
[358621970,1745315450986,-500.0,0.00023013,2]
[358621971,1745315450998,-151.0,0.00023013,7]
[358621972,1745315451008,-234.029471,0.00023013,7]
[358621973,1745315451017,-506.55,0.00023013,2]
[358621974,1745315451027,-500.0,0.00023013,2]
[358621975,1745315451038,-500.0,0.00023013,2]
[358621976,1745315451047,-1352.48,0.00023013,2]
[358621977,1745315451057,-758.51,0.00023013,2]
[358621978,1745315451067,-500.0,0.00023013,2]
[358621979,1745315451077,-500.0,0.00023013,2]
[358621980,1745315451089,-444.06608682,0.00023013,2]
[358621981,1745315451098,-500.0,0.00023013,2]
[358621982,1745315451108,-151.0,0.00023013,7]
[358621983,1745315451118,-500.0,0.00023013,2]
[358621984,1745315451128,-500.0,0.00023013,2]
[358621985,1745315451139,-642.14,0.00023013,2]
[358621986,1745315451148,-500.0,0.00023013,2]
[358621987,1745315451158,-500.0,0.00023013,2]
[358621988,1745315451168,-828.14,0.00023013,2]
[358621989,1745315451178,-500.0,0.00023013,2]
[358621990,1745315451187,-500.0,0.00023013,2]
[358621991,1745315451197,-500.0,0.00023013,2]
[358621992,1745315451206,-500.0,0.00023013,2]
[358621993,1745315451216,-151.0,0.00023013,7]
[358621994,1745315451225,-614.72,0.00023013,2]
[358621995,1745315451235,-813.43,0.00023013,2]
[358621996,1745315451244,-500.0,0.00023013,2]
[358621997,1745315451254,-500.0,0.00023013,2]
[358621998,1745315451264,-151.0,0.00023013,7]
[358621999,1745315451273,-500.0,0.00023013,2]
[358622000,1745315451282,-500.0,0.00023013,2]
[358622001,1745315451292,-500.0,0.00023013,2]
[358622002,1745315451301,-500.0,0.00023013,2]
[358622003,1745315451310,-689.03,0.00023013,2]
[358622004,1745315451319,-640.54,0.00023013,2]
[358622005,1745315451329,-500.0,0.00023013,2]
[358622006,1745315451339,-500.0,0.00023013,2]
[358622007,1745315451349,-500.0,0.00023013,2]
[358622008,1745315451358,-500.0,0.00023013,2]
[358622009,1745315451367,-5447.92,0.00023013,2]
[358622010,1745315451377,-500.0,0.00023013,2]
[358622011,1745315451387,-500.0,0.00023013,2]
[358622012,1745315451396,-500.0,0.00023013,2]
[358622013,1745315451405,-685.82,0.00023013,2]
[358622014,1745315451415,-9563.74,0.00023013,2]
[358622015,1745315451424,-659.06,0.00023013,2]
[358622016,1745315451434,-511.23060626,0.00023013,2]
[358622017,1745315451443,-500.0,0.00023013,2]
[358622018,1745315451452,-796.38,0.00023013,2]
[358622019,1745315451462,-500.0,0.00023013,2]
[358622020,1745315451472,-500.0,0.00023013,2]
[358622021,1745315451481,-500.0,0.00023013,2]
[358622022,1745315451490,-500.0,0.00023013,2]
[358622023,1745315451500,-500.0,0.00023013,2]
[358622024,1745315451509,-500.0,0.00023013,2]
[358622025,1745315451518,-639.97,0.00023013,2]
[358622026,1745315451528,-470.01813266,0.00023013,2]
[358622027,1745315451537,-500.0,0.00023013,2]
[358622028,1745315451547,-500.0,0.00023013,2]
[358622029,1745315451557,-500.0,0.00023013,2]
[358622030,1745315451566,-586.65,0.00023013,2]
[358622031,1745315451576,-686.44,0.00023013,2]
[358622032,1745315451586,-500.0,0.00023013,2]
[358622033,1745315451595,-500.0,0.00023013,2]
[358622034,1745315451605,-500.0,0.00023013,2]
[358622035,1745315451614,-500.0,0.00023013,2]
[358622036,1745315451624,-151.0,0.00023013,7]
[358622037,1745315451633,-2662.6,0.00023013,2]
[358622038,1745315451643,-500.0,0.00023013,2]
[358622039,1745315451653,-500.0,0.00023013,2]
[358622040,1745315451662,-500.0,0.00023013,2]
[358622041,1745315451672,-957.2,0.00023013,2]
[358622042,1745315451681,-500.0,0.00023013,2]
[358622043,1745315451691,-507.58,0.00023013,2]
[358622044,1745315451701,-735.38,0.00023013,2]
[358622045,1745315451711,-500.0,0.00023013,2]
[358622046,1745315451721,-151.0,0.00023013,7]
[358622047,1745315451730,-500.0,0.00023013,2]
[358622048,1745315451739,-625.91,0.00023013,2]
[358622049,1745315451749,-500.0,0.00023013,2]
[358622050,1745315451758,-151.0,0.00023013,7]
[358622051,1745315451768,-1608.99,0.00023013,2]
[358622052,1745315451778,-151.0,0.00023013,7]
[358622053,1745315451787,-500.0,0.00023013,2]
[358622054,1745315451797,-687.33,0.00023013,2]
[358622055,1745315451807,-649.16,0.00023013,2]
[358622056,1745315451817,-500.0,0.00023013,2]
[358622057,1745315451826,-500.0,0.00023013,2]
[358622058,1745315451836,-603.39,0.00023013,2]
[358622059,1745315451846,-500.0,0.00023013,2]
[358622060,1745315451856,-1604.6,0.00023013,2]
[358622061,1745315451866,-1370.17,0.00023013,2]
[358622062,1745315451876,-500.0,0.00023013,2]
[358622063,1745315451886,-500.0,0.00023013,2]
[358622064,1745315451895,-151.0,0.00023013,7]
[358622065,1745315451905,-500.0,0.00023013,2]
[358622066,1745315451915,-500.0,0.00023013,2]
[358622067,1745315451925,-500.0,0.00023013,2]
[358622068,1745315451935,-4013.43,0.00023013,2]
[358622069,1745315451944,-402.42676872,0.00023013,2]
[358622070,1745315451954,-3088.29,0.00023013,2]
[358622071,1745315451964,-500.0,0.00023013,2]
[358622072,1745315451974,-500.0,0.00023013,2]
[358622073,1745315451984,-502.48401849,0.00023013,2]
[358622074,1745315451995,-572.7,0.00023013,2]
[358622075,1745315452006,-500.0,0.00023013,2]
[358622076,1745315452016,-753.24,0.00023013,2]
[358622077,1745315452025,-500.0,0.00023013,2]
[358622078,1745315452035,-500.0,0.00023013,2]
[358622079,1745315452046,-500.0,0.00023014,2]
[358622080,1745315452055,-500.0,0.00023014,2]
[358622081,1745315452065,-520.24766045,0.00023014,2]
[358622082,1745315452075,-392.378,0.00023014,2]
[358622083,1745315452084,-2907.84315613,0.00023218,2]
[358622084,1745315452094,-500.0,0.00023287,2]
[358622085,1745315452103,-500.0,0.00023287,2]
[358622086,1745315452113,-500.0,0.00023287,2]
[358622087,1745315452122,-500.0,0.00023287,2]
[358622088,1745315452132,-596.83934062,0.00023287,2]
[358622089,1745315452141,-500.0,0.00023287,2]
[358622090,1745315452151,-517.26,0.00023287,2]
[358622091,1745315452160,-500.0,0.00023287,2]
[358622092,1745315452170,-500.0,0.00023287,2]
[358622093,1745315452180,-500.0,0.00023287,2]
[358622094,1745315452190,-500.0,0.00023287,2]
[358622095,1745315452199,-644.09,0.00023287,2]
[358622096,1745315452209,-705.05,0.00023287,2]
[358622097,1745315452219,-500.0,0.00023287,2]
[358622098,1745315452229,-500.0,0.00023287,2]
[358622099,1745315452238,-500.0,0.00023287,2]
[358622100,1745315452247,-500.0,0.00023287,2]
[358622101,1745315452257,-500.0,0.00023287,2]
[358622102,1745315452267,-408.15664367,0.00023287,2]
[358622103,1745315452276,-761.67,0.00023287,2]
[358622104,1745315452286,-1056.18,0.00023287,2]
[358622105,1745315452295,-512.88,0.00023287,2]
[358622106,1745315452304,-500.0,0.00023287,2]
[358622107,1745315452315,-500.0,0.00023287,2]
[358622108,1745315452325,-639.18,0.00023287,2]
[358622109,1745315452335,-500.0,0.00023287,2]
[358622110,1745315452344,-500.0,0.00023287,2]
[358622111,1745315452354,-500.0,0.00023287,2]
[358622112,1745315452363,-506.55,0.00023287,2]
[358622113,1745315452374,-500.0,0.00023287,2]
[358622114,1745315452383,-500.0,0.00023287,2]
[358622115,1745315452392,-1352.48,0.00023287,2]
[358622116,1745315452402,-758.51,0.00023287,2]
[358622117,1745315452411,-500.0,0.00023287,2]
[358622118,1745315452552,-500.0,0.00023287,2]
[358622119,1745315452562,-500.0,0.00023287,2]
[358622120,1745315452572,-500.0,0.00023287,2]
[358622121,1745315452583,-500.0,0.00023287,2]
[358622122,1745315452592,-642.14,0.00023287,2]
[358622123,1745315452602,-500.0,0.00023287,2]
[358622124,1745315452612,-500.0,0.00023287,2]
[358622125,1745315452621,-828.14,0.00023287,2]
[358622126,1745315452631,-500.0,0.00023287,2]
[358622127,1745315452642,-500.0,0.00023287,2]
[358622128,1745315452651,-500.0,0.00023287,2]
[358622129,1745315452662,-500.0,0.00023287,2]
[358622130,1745315452671,-151.0,0.00023287,7]
[358622131,1745315452680,-614.72,0.00023287,2]
[358622132,1745315452689,-813.43,0.00023287,2]
[358622133,1745315452699,-500.0,0.00023287,2]
[358622134,1745315452708,-500.0,0.00023287,2]
[358622135,1745315452718,-500.0,0.00023287,2]
[358622136,1745315452728,-500.0,0.00023287,2]
[358622137,1745315452738,-500.0,0.00023287,2]
[358622138,1745315452748,-500.0,0.00023287,2]
[358622139,1745315452758,-689.03,0.00023287,2]
[358622140,1745315452767,-640.54,0.00023287,2]
[358622141,1745315452777,-500.0,0.00023287,2]
[358622142,1745315452786,-500.0,0.00023287,2]
[358622143,1745315452796,-500.0,0.00023287,2]
[358622144,1745315452805,-500.0,0.00023287,2]
[358622145,1745315452815,-5447.92,0.00023287,2]
[358622146,1745315452825,-500.0,0.00023287,2]
[358622147,1745315452835,-500.0,0.00023287,2]
[358622148,1745315452844,-530.00080485,0.00023287,2]
[358622149,1745315452854,-685.82,0.00023287,2]
[358622150,1745315452864,-9563.74,0.00023287,2]
[358622151,1745315452874,-659.06,0.00023287,2]
[358622152,1745315452884,-500.0,0.00023287,2]
[358622153,1745315452893,-796.38,0.00023287,2]
[358622154,1745315452903,-500.0,0.00023287,2]
[358622155,1745315452913,-500.0,0.00023287,2]
[358622156,1745315452923,-500.0,0.00023287,2]
[358622157,1745315452933,-500.0,0.00023287,2]
[358622158,1745315452942,-500.0,0.00023287,2]
[358622159,1745315452952,-500.0,0.00023287,2]
[358622160,1745315452963,-639.97,0.00023287,2]
[358622161,1745315452973,-500.0,0.00023287,2]
[358622162,1745315452983,-500.0,0.00023287,2]
[358622163,1745315452997,-500.0,0.00023287,2]
[358622164,1745315453007,-586.65,0.00023287,2]
[358622165,1745315453017,-686.44,0.00023287,2]
[358622166,1745315453028,-500.0,0.00023287,2]
[358622167,1745315453039,-500.0,0.00023287,2]
[358622168,1745315453050,-1312.80974,0.00023287,2]
[358622169,1745315453059,-500.0,0.00023287,2]
[358622170,1745315453069,-500.0,0.00023287,2]
[358622171,1745315453078,-2662.6,0.00023287,2]
[358622172,1745315453087,-1312.80974,0.00023287,2]
[358622173,1745315453098,-169.60740165,0.00023287,2]
[358622174,1745315453108,-500.0,0.00023287,2]
[358622175,1745315453119,-500.0,0.00023287,2]
[358622176,1745315453129,-957.2,0.00023287,2]
[358622177,1745315453140,-500.0,0.00023287,2]
[358622178,1745315453150,-507.58,0.00023287,2]
[358622179,1745315453160,-735.38,0.00023287,2]
[358622180,1745315453170,-500.0,0.00023287,2]
[358622181,1745315453180,-500.0,0.00023287,2]
[358622182,1745315453190,-625.91,0.00023287,2]
[358622183,1745315453199,-500.0,0.00023287,2]
[358622184,1745315453209,-1608.99,0.00023287,2]
[358622185,1745315453219,-500.0,0.00023287,2]
[358622186,1745315453230,-687.33,0.00023287,2]
[358622187,1745315453241,-649.16,0.00023287,2]
[358622188,1745315453251,-500.0,0.00023287,2]
[358622189,1745315453261,-500.0,0.00023287,2]
[358622190,1745315453271,-603.39,0.00023287,2]
[358622191,1745315453280,-500.0,0.00023287,2]
[358622192,1745315453290,-1604.6,0.00023287,2]
[358622193,1745315453299,-1370.17,0.00023287,2]
[358622194,1745315453310,-500.0,0.00023287,2]
[358622195,1745315453320,-500.0,0.00023287,2]
[358622196,1745315453330,-500.0,0.00023287,2]
[358622197,1745315453339,-500.0,0.00023287,2]
[358622198,1745315453349,-500.0,0.00023287,2]
[358622199,1745315453359,-4013.43,0.00023287,2]
[358622200,1745315453369,-3088.29,0.00023287,2]
[358622201,1745315453379,-500.0,0.00023287,2]
[358622202,1745315453388,-500.0,0.00023287,2]
[358622203,1745315453398,-572.7,0.00023287,2]
[358622204,1745315453407,-151.32188304,0.00023287,2]
[358622205,1745315453418,-753.24,0.00023287,2]
[358622206,1745315453427,-500.0,0.00023287,2]
[358622207,1745315453437,-500.0,0.00023287,2]
[358622208,1745315453447,-1127.92731883,0.00023417,4]
[358622209,1745315453457,-500.0,0.00023561,2]
[358622210,1745315453467,-500.0,0.00023561,2]
[358622211,1745315453480,-500.0,0.00023561,2]
[358622212,1745315453490,-500.0,0.00023561,2]
[358622213,1745315453500,-500.0,0.00023561,2]
[358622214,1745315453510,-517.26,0.00023561,2]
[358622215,1745315453519,-500.0,0.00023561,2]
[358622216,1745315453528,-500.0,0.00023561,2]
[358622217,1745315453538,-500.0,0.00023561,2]
[358622218,1745315453547,-500.0,0.00023561,2]
[358622219,1745315453557,-644.09,0.00023561,2]
[358622220,1745315453566,-705.05,0.00023561,2]
[358622221,1745315453576,-500.0,0.00023561,2]
[358622222,1745315453585,-500.0,0.00023561,2]
[358622223,1745315453595,-500.0,0.00023561,2]
[358622224,1745315453605,-500.0,0.00023561,2]
[358622225,1745315453615,-500.0,0.00023561,2]
[358622226,1745315453625,-761.67,0.00023561,2]
[358622227,1745315453634,-1056.18,0.00023561,2]
[358622228,1745315453644,-512.88,0.00023561,2]
[358622229,1745315453654,-500.0,0.00023561,2]
[358622230,1745315453664,-151.0,0.00023561,7]
[358622231,1745315453674,-500.0,0.00023561,2]
[358622232,1745315453683,-639.18,0.00023561,2]
[358622233,1745315453692,-613.81727777,0.00023561,2]
[358622234,1745315453702,-155.262413,0.00023561,2]
[358622235,1745315453711,-500.0,0.00023561,2]
[358622236,1745315453721,-155.262413,0.00023561,2]
[358622237,1745315453731,-500.0,0.00023561,2]
[358622238,1745315453741,-151.0,0.00023561,7]
[358622239,1745315453751,-506.55,0.00023561,2]
[358622240,1745315453761,-500.0,0.00023561,2]
[358622241,1745315453770,-500.0,0.00023561,2]
[358622242,1745315453780,-1352.48,0.00023561,2]
[358622243,1745315453791,-758.51,0.00023561,2]
[358622244,1745315453800,-500.0,0.00023561,2]
[358622245,1745315453810,-500.0,0.00023561,2]
[358622246,1745315453820,-500.0,0.00023561,2]
[358622247,1745315453830,-500.0,0.00023561,2]
[358622248,1745315453840,-500.0,0.00023561,2]
[358622249,1745315453850,-642.14,0.00023561,2]
[358622250,1745315453859,-500.0,0.00023561,2]
[358622251,1745315453869,-500.0,0.00023561,2]
[358622252,1745315453878,-828.14,0.00023561,2]
[358622253,1745315453889,-500.0,0.00023561,2]
[358622254,1745315453899,-500.0,0.00023561,2]
[358622255,1745315453908,-500.0,0.00023561,2]
[358622256,1745315453919,-500.0,0.00023561,2]
[358622257,1745315453929,-614.72,0.00023561,2]
[358622258,1745315453938,-813.43,0.00023561,2]
[358622259,1745315453948,-500.0,0.00023561,2]
[358622260,1745315453958,-500.0,0.00023561,2]
[358622261,1745315453967,-151.0,0.00023561,7]
[358622262,1745315453978,-500.0,0.00023561,2]
[358622263,1745315453988,-500.0,0.00023561,2]
[358622264,1745315454001,-500.0,0.00023561,2]
[358622265,1745315454010,-500.0,0.00023561,2]
[358622266,1745315454020,-689.03,0.00023561,2]
[358622267,1745315454030,-640.54,0.00023561,2]
[358622268,1745315454042,-500.0,0.00023561,2]
[358622269,1745315454051,-500.0,0.00023561,2]
[358622270,1745315454062,-500.0,0.00023561,2]
[358622271,1745315454073,-500.0,0.00023561,2]
[358622272,1745315454084,-5447.92,0.00023561,2]
[358622273,1745315454094,-500.0,0.00023561,2]
[358622274,1745315454104,-500.0,0.00023561,2]
[358622275,1745315454114,-685.82,0.00023561,2]
[358622276,1745315454123,-9563.74,0.00023561,2]
[358622277,1745315454133,-659.06,0.00023561,2]
[358622278,1745315454143,-500.0,0.00023561,2]
[358622279,1745315454152,-796.38,0.00023561,2]
[358622280,1745315454161,-500.0,0.00023561,2]
[358622281,1745315454171,-500.0,0.00023561,2]
[358622282,1745315454180,-500.0,0.00023561,2]
[358622283,1745315454190,-500.0,0.00023561,2]
[358622284,1745315454200,-500.0,0.00023561,2]
[358622285,1745315454210,-500.0,0.00023561,2]
[358622286,1745315454219,-639.97,0.00023561,2]
[358622287,1745315454229,-500.0,0.00023561,2]
[358622288,1745315454239,-500.0,0.00023561,2]
[358622289,1745315454249,-500.0,0.00023561,2]
[358622290,1745315454260,-586.65,0.00023561,2]
[358622291,1745315454270,-686.44,0.00023561,2]
[358622292,1745315454280,-500.0,0.00023561,2]
[358622293,1745315454290,-500.0,0.00023561,2]
[358622294,1745315454300,-500.0,0.00023561,2]
[358622295,1745315454309,-500.0,0.00023561,2]
[358622296,1745315454319,-2662.6,0.00023561,2]
[358622297,1745315454328,-500.0,0.00023561,2]
[358622298,1745315454338,-348.06746641,0.00023561,2]
[358622299,1745315454347,-957.2,0.00023561,2]
[358622300,1745315454358,-500.0,0.00023561,2]
[358622301,1745315454367,-507.58,0.00023561,2]
[358622302,1745315454377,-735.38,0.00023561,2]
[358622303,1745315454387,-500.0,0.00023561,2]
[358622304,1745315454397,-151.0,0.00023561,7]
[358622305,1745315454406,-500.0,0.00023561,2]
[358622306,1745315454417,-625.91,0.00023561,2]
[358622307,1745315454426,-500.0,0.00023561,2]
[358622308,1745315454436,-151.0,0.00023561,7]
[358622309,1745315454445,-1608.99,0.00023561,2]
[358622310,1745315454457,-175.578678,0.00023561,7]
[358622311,1745315454467,-500.0,0.00023561,2]
[358622312,1745315454476,-687.33,0.00023561,2]
[358622313,1745315454488,-649.16,0.00023561,2]
[358622314,1745315454497,-500.0,0.00023561,2]
[358622315,1745315454507,-500.0,0.00023561,2]
[358622316,1745315454517,-603.39,0.00023561,2]
[358622317,1745315454527,-500.0,0.00023561,2]
[358622318,1745315454537,-1604.6,0.00023561,2]
[358622319,1745315454546,-1370.17,0.00023561,2]
[358622320,1745315454556,-500.0,0.00023561,2]
[358622321,1745315454566,-500.0,0.00023561,2]
[358622322,1745315454679,-151.0,0.00023561,7]
[358622323,1745315454698,-500.0,0.00023561,2]
[358622324,1745315454708,-500.0,0.00023561,2]
[358622325,1745315454718,-500.0,0.00023561,2]
[358622326,1745315454727,-4013.43,0.00023561,2]
[358622327,1745315454737,-3088.29,0.00023561,2]
[358622328,1745315454747,-500.0,0.00023561,2]
[358622329,1745315454757,-500.0,0.00023561,2]
[358622330,1745315454766,-572.7,0.00023561,2]
[358622331,1745315454776,-753.24,0.00023561,2]
[358622332,1745315454785,-500.0,0.00023561,2]
[358622333,1745315454795,-500.0,0.00023561,2]
[358622334,1745315454805,-500.0,0.00023562,2]
[358622335,1745315454814,-317.26911528,0.00023562,2]
[358622336,1745315454824,-500.0,0.00023835,2]
[358622337,1745315454833,-572.52381974,0.00023835,2]
[358622338,1745315454843,-500.0,0.00023835,2]
[358622339,1745315454853,-500.0,0.00023835,2]
[358622340,1745315454863,-500.0,0.00023835,2]
[358622341,1745315454872,-517.26,0.00023835,2]
[358622342,1745315454882,-500.0,0.00023835,2]
[358622343,1745315454893,-500.0,0.00023835,2]
[358622344,1745315454902,-500.0,0.00023835,2]
[358622345,1745315454912,-500.0,0.00023835,2]
[358622346,1745315454922,-644.09,0.00023835,2]
[358622347,1745315454932,-705.05,0.00023835,2]
[358622348,1745315454942,-500.0,0.00023835,2]
[358622349,1745315454953,-500.0,0.00023835,2]
[358622350,1745315454963,-500.0,0.00023835,2]
[358622351,1745315454972,-500.0,0.00023835,2]
[358622352,1745315454982,-500.0,0.00023835,2]
[358622353,1745315454992,-761.67,0.00023835,2]
[358622354,1745315455005,-1056.18,0.00023835,2]
[358622355,1745315455015,-512.88,0.00023835,2]
[358622356,1745315455024,-500.0,0.00023835,2]
[358622357,1745315455034,-500.0,0.00023835,2]
[358622358,1745315455046,-639.18,0.00023835,2]
[358622359,1745315455055,-500.0,0.00023835,2]
[358622360,1745315455066,-500.0,0.00023835,2]
[358622361,1745315455075,-506.55,0.00023835,2]
[358622362,1745315455086,-500.0,0.00023835,2]
[358622363,1745315455096,-500.0,0.00023835,2]
[358622364,1745315455106,-1352.48,0.00023835,2]
[358622365,1745315455116,-758.51,0.00023835,2]
[358622366,1745315455125,-500.0,0.00023835,2]
[358622367,1745315455136,-500.0,0.00023835,2]
[358622368,1745315455146,-500.0,0.00023835,2]
[358622369,1745315455157,-500.0,0.00023835,2]
[358622370,1745315455166,-500.0,0.00023835,2]
[358622371,1745315455177,-642.14,0.00023835,2]
[358622372,1745315455187,-500.0,0.00023835,2]
[358622373,1745315455197,-500.0,0.00023835,2]
[358622374,1745315455207,-828.14,0.00023835,2]
[358622375,1745315455216,-500.0,0.00023835,2]
[358622376,1745315455226,-500.0,0.00023835,2]
[358622377,1745315455236,-500.0,0.00023835,2]
[358622378,1745315455245,-500.0,0.00023835,2]
[358622379,1745315455255,-614.72,0.00023835,2]
[358622380,1745315455265,-813.43,0.00023835,2]
[358622381,1745315455275,-500.0,0.00023835,2]
[358622382,1745315455285,-500.0,0.00023835,2]
[358622383,1745315455294,-500.0,0.00023835,2]
[358622384,1745315455304,-500.0,0.00023835,2]
[358622385,1745315455314,-500.0,0.00023835,2]
[358622386,1745315455323,-500.0,0.00023835,2]
[358622387,1745315455333,-689.03,0.00023835,2]
[358622388,1745315455343,-640.54,0.00023835,2]
[358622389,1745315455352,-500.0,0.00023835,2]
[358622390,1745315455362,-500.0,0.00023835,2]
[358622391,1745315455371,-500.0,0.00023835,2]
[358622392,1745315455381,-500.0,0.00023835,2]
[358622393,1745315455391,-5447.92,0.00023835,2]
[358622394,1745315455401,-500.0,0.00023835,2]
[358622395,1745315455411,-500.0,0.00023835,2]
[358622396,1745315455420,-685.82,0.00023835,2]
[358622397,1745315455430,-9563.74,0.00023835,2]
[358622398,1745315455440,-659.06,0.00023835,2]
[358622399,1745315455450,-500.0,0.00023835,2]
[358622400,1745315455459,-796.38,0.00023835,2]
[358622401,1745315455469,-500.0,0.00023835,2]
[358622402,1745315455479,-500.0,0.00023835,2]